Cogmind - Beta 16 @@@ ROGUE MODE // 2025.10.26 @ 22:28:45 Player: Lazz Result: Destroyed by H-77 Assassin with High-powered Shotgun Performance ------------- Evolutions (7) 3500 Regions Visited (8) 1600 Robots Destroyed (63) 315 Value Destroyed (3185) 3185 Prototype IDs (23) 460 Alien Tech Used (0) 0 Bonus (2114) 2114 TOTAL SCORE: 11174 Bonus ------- High Alert Combat Kills 475 Follower Combat Kills 427 Entered DSFs 500 Registered with UFD 300 Met Optimus in HQ 500 Friendly Fire -88 Cogmind --------- Core Integrity 0/1300 Matter 251/300 Energy 99/100 System Corruption 5% Temperature Warm (171) Movement Core (50) Location -3/Research Parts ------- > --- POWER (3) -------- (None) > --- PROPULSION (4) --- (None) > --- UTILITY (10) ----- (None) > --- WEAPON (4) ------- (None) > --- INVENTORY (5) ---- Advanced Heat Sink Improved Launcher Guidance Computer Improved Launcher Guidance Computer Improved Recalibrator Peak State ------------ > --- POWER ------------ Particle Reactor Particle Reactor Particle Reactor > --- PROPULSION ------- Carbon-fiber Leg Thunder Leg Cargo Legs > --- UTILITY ---------- Advanced Heat Sink Advanced Heat Sink Large Storage Unit Active Sensor Suite Target Analyzer Advanced Shield Generator > --- WEAPON ----------- Heavy Laser Nova Cannon Nova Cannon Rocket Array > --- INVENTORY -------- Improved Deuterium Engine Light Angular Momentum Engine Micro Fission Core Improved Carbon-fiber Leg Myomer Leg Advanced Heat Sink Improved Launcher Guidance Computer Improved Recalibrator Overtuned Beamcaster Nova Cannon Nova Cannon Nova Cannon Nova Cannon [Rating: 129] Favorites ----------- Power Light Angular Momentum Engine Engine Light Angular Momentum Engine Power Core Fission Core Reactor Particle Reactor Propulsion Cargo Legs Treads Biometal Medium Treads Leg Cargo Legs Utility Targeting Computer Device Advanced Heat Sink Storage Large Storage Unit Processor Targeting Computer Weapon Force Rifle Energy Gun Force Rifle Energy Cannon Nova Cannon Ballistic Gun Barrage Gun Launcher Long-range Missile Launcher Special Weapon CPS Tube Build | -11 -10 -10 -8 -6 -5 -4 -4 -3 ------- Run | Yrd Mat Sub Scr Fac Fac Fac DSF Res Slots Evolved 14 | . . . . 8 2 2 . 2 Power 2 | . . . . 1 1 . . . Propulsion 2 | . . . . 2 . . . . Utility 8 | . . . . 4 . 2 . 2 Weapon 2 | . . . . 1 1 . . . Parts Attached 76 | 6 . 7 8 20 17 2 8 8 Power 16 | 1 . 1 1 4 4 . 4 1 Engine 8 | 1 . 1 1 2 2 . 1 . Core 4 | . . . . 2 2 . . . Reactor 4 | . . . . . . . 3 1 Propulsion 14 | 2 . 2 . 3 4 . 1 2 Treads 2 | . . . . . . . . 2 Leg 12 | 2 . 2 . 3 4 . 1 . Wheel . | . . . . . . . . . Hover . | . . . . . . . . . Flight . | . . . . . . . . . Utility 18 | 1 . 1 4 7 2 2 . 1 Device 12 | . . 1 . 6 2 2 . 1 Storage 2 | 1 . . 1 . . . . . Processor 4 | . . . 3 1 . . . . Hackware . | . . . . . . . . . Protection . | . . . . . . . . . Artifact . | . . . . . . . . . Weapon 28 | 2 . 3 3 6 7 . 3 4 Energy Gun 14 | 2 . 3 . 5 4 . . . Energy Cannon 9 | . . . . . 3 . 2 4 Ballistic Gun 2 | . . . 2 . . . . . Ballistic Cannon . | . . . . . . . . . Launcher 2 | . . . . 1 . . 1 . Special Weapon 1 | . . . 1 . . . . . Impact Weapon . | . . . . . . . . . Slashing Weapon . | . . . . . . . . . Piercing Weapon . | . . . . . . . . . Special Melee Weapon . | . . . . . . . . . Unidentified Prototypes 2 | . . . . . 2 . . . Parts Lost 39 | . . 2 . 3 5 . 1 28 Power 10 | . . 1 . 1 1 . . 7 Propulsion 8 | . . 1 . . . . 1 6 Utility 9 | . . . . 1 1 . . 7 Weapon 12 | . . . . 1 3 . . 8 Highest Loss Streak 17 | . . 2 . 2 2 . 1 17 To Critical Strikes . | . . . . . . . . . Average Backups 9 | 2 4 5 8 10 10 6 8 9 Power 2 | . 1 1 2 3 1 1 1 2 Propulsion 2 | 1 2 2 3 2 2 1 1 . Utility 1 | . . . . 1 3 3 2 3 Weapon 2 | . 1 1 1 3 3 1 3 3 Tool/Special . | . . . . . . . . . Unused Backups 16 | . . 2 7 2 1 . . 4 Power 1 | . . . 1 . . . . . Propulsion 7 | . . 2 4 1 . . . . Utility 4 | . . . . . . . . 4 Weapon 4 | . . . 2 1 1 . . . Tool/Special . | . . . . . . . . . Average Slot Usage (%) 83 | . 85 79 87 83 85 78 83 62 Engine 8 | . 14 13 11 5 10 10 5 1 Core 2 | . . . . 5 4 5 2 . Reactor 1 | . . . . . . . 6 10 Leg 14 | . 28 25 11 17 16 15 15 8 Device 12 | . . . 10 16 14 15 21 17 Storage 8 | . 14 13 11 5 5 5 5 4 Processor 13 | . . . 22 11 8 5 5 3 Energy Gun 9 | . 28 25 4 12 13 10 5 1 Energy Cannon 1 | . . . . . 4 10 10 8 Ballistic Gun 4 | . . . 8 2 . . . . Launcher 1 | . . . . 1 2 . 4 2 Special Weapon 3 | . . . 8 . . . . . Peak Build Rating 129 | 6 6 25 45 85 100 110 129 128 Average Rating 62 | 4 6 8 35 78 94 109 118 100 On Entrance 55 | . 6 6 25 45 82 100 110 123 Avg Prop Armor Cover (%) 2 | . . . . . 2 . . . Naked Turns 3 | . . . . . . . . 3 Heaviest Build 121 | 13 13 18 35 64 90 86 120 121 Greatest Support 96 | 20 20 55 55 91 96 93 93 81 Greatest Overweight (x) 6 | . . 1 . . 1 . 2 6 Average Overweight (x) . | . . . . . . . . 1 Largest Inventory Capacity 15 | 8 8 8 15 15 15 15 15 15 Average Capacity 12 | 7 8 8 9 15 15 15 15 14 Most Carried 15 | 5 4 8 15 15 15 6 14 11 Average Carried 9 | 2 4 5 8 11 11 5 9 9 Final Capacity 15 | 8 8 8 15 15 15 15 15 5 Final Carried 15 | 4 4 7 15 15 7 5 12 4 Scrap Suit Usage (%) 33 | . . . . 99 58 . . . Parts Cannibalized 7 | . . . . 4 3 . . . Class Distribution -------------------- 31% | Derelict-Mutant 18% | Scavenger-Gunner 16% | Scavenger-Skirmisher 14% | Gunner 9% | Scavenger-Mutant 8% | Mutant Dominant Class ---------------- Mutant | -10/Materials Mutant | -10/Subcaves Derelict-Mutant | -8/Scraptown Gunner | -6/Factory Scavenger-Gunner | -5/Factory Scavenger-Gunner | -4/Factory Scavenger-Skirmisher | -4/DSF Scavenger-Skirmisher | -3/Research Resources | -11 -10 -10 -8 -6 -5 -4 -4 -3 ----------- Run | Yrd Mat Sub Scr Fac Fac Fac DSF Res Matter Collected 2176 | 214 . 73 136 1108 379 . 23 243 Remotely . | . . . . . . . . . Salvage Created 3703 | . . . 70 1240 1124 . 610 659 Parts 165 | . . . . 47 59 . 27 32 Haulers Intercepted 1 | . . . . 1 . . . . Recyclers Shooed 1 | . . . . 1 . . . . Parts Field Recycled . | . . . . . . . . . Retrieved Matter . | . . . . . . . . . Parts Self-Destructed 6 | . . 2 4 . . . . . Prevented . | . . . . . . . . . Parts Restored . | . . . . . . . . . Kills | -11 -10 -10 -8 -6 -5 -4 -4 -3 ------- Run | Yrd Mat Sub Scr Fac Fac Fac DSF Res Combat Hostiles Destroyed 51 | . . . 1 14 18 . 8 10 Guns 24 | . . . 1 12 10 . 1 . Cannons 14 | . . . . . 5 . 3 6 AOE 12 | . . . . 2 3 . 4 3 Classes Destroyed 17 | . . . 1 7 6 . 2 1 Worker 3 | . . . . 2 1 . . . Builder 3 | . . . . . 1 . . 2 Hauler 1 | . . . . 1 . . . . Recycler 2 | . . . . 2 . . . . Operator 1 | . . . . . 1 . . . Watcher 2 | . . . . 2 . . . . Swarmer 8 | . . . . 5 . . . 3 Saboteur 1 | . . . . . 1 . . . Grunt 23 | . . . . 7 8 . 2 6 Brawler 1 | . . . . . . . . 1 Duelist 1 | . . . . . 1 . . . Sentry 3 | . . . . . 3 . . . Specialist 3 | . . . . . . . 3 . Hunter 6 | . . . . . 4 . 2 . Programmer 3 | . . . . 2 1 . . . Heavy 1 | . . . . . . . 1 . Scrapper 1 | . . . 1 . . . . . Best Kill Streak 10 | . . . 1 10 3 . 4 5 Combat Bots Only 7 | . . . 1 7 3 . 4 3 Max Kills in Single Turn 5 | . . . 1 2 2 . 2 5 Gunslinging . | . . . . . . . . . Exploded 3 | . . . . 2 1 . 2 3 Melee . | . . . . . . . . . Uniques/NPCs Destroyed . | . . . . . . . . . Combat | -11 -10 -10 -8 -6 -5 -4 -4 -3 -------- Run | Yrd Mat Sub Scr Fac Fac Fac DSF Res Hostile Shots Fired 504 | . . 7 4 90 60 . 59 284 Missed 160 | . . 3 1 32 19 . 21 84 Hits 344 | . . 4 3 58 41 . 38 200 Melee 5 | . . . . . 1 . . 4 Projectile 339 | . . 4 3 58 40 . 38 196 AOE 10 | . . 8 . . 2 . . . Critical Strikes 21 | . . . 2 4 2 . 3 10 Part Disruptions 4 | . . . . . . . 4 . Damage Taken 7895 | . . 399 70 1453 1571 . 569 3833 Core 2587 | . . 122 23 520 555 . 59 1308 Absorbed by Shields 477 | . . . . . . . 217 260 Regen/Repaired (Parts) 56 | . . . . 35 21 . . . Core Remaining (%) 63 | 100 . . 42 38 44 . 94 . Volleys Fired 139 | . . 13 4 49 36 . 15 22 Largest 4 | . . 2 2 3 4 . 4 4 Hottest 452 | . . 120 28 240 356 . 340 452 Shots Fired 378 | . . 26 6 140 111 . 47 48 Gun 271 | . . 26 4 137 84 . 15 5 Cannon 86 | . . . . . 18 . 26 42 Launcher 19 | . . . . 3 9 . 6 1 Special 2 | . . . 2 . . . . . Kinetic 16 | . . . 4 12 . . . . Thermal 278 | . . 26 . 119 53 . 33 47 Explosive 19 | . . . . 3 9 . 6 1 Electromagnetic 63 | . . . . 6 49 . 8 . Robot Hit Streak 16 | . . 3 3 14 16 . 9 6 Robot Miss Streak 11 | . . 2 1 11 4 . 5 3 Penetration Max . | . . . . . . . . . Secondary Targets 6 | . . . . 4 2 . . . Max Gunslinging Chain 1 | . . . . 1 1 . . . Shots Hit Robots 208 | . . 4 4 73 67 . 29 31 Core Hits 154 | . . 1 1 30 42 . 52 28 Critical Kills 5 | . . . . 4 . . . 1 Critical Parts Destroyed 2 | . . . . 2 . . . . Critical Strikes 23 | . . 1 . 8 11 . 2 1 Burn 12 | . . 1 . 2 8 . 1 . Meltdown 1 | . . . . . . . . 1 Destroy 6 | . . . . 6 . . . . Corrupt 4 | . . . . . 3 . 1 . Melee Attacks . | . . . . . . . . . Impact . | . . . . . . . . . Slashing . | . . . . . . . . . Piercing . | . . . . . . . . . Sneak Attacks . | . . . . . . . . . Combat Hostiles . | . . . . . . . . . Follow-up Attacks . | . . . . . . . . . Damage Inflicted 8324 | . . 46 37 2086 2461 . 2011 1683 Guns 3387 | . . 46 37 1761 1312 . 172 59 Cannons 2200 | . . . . . 327 . 608 1265 Explosions 2694 | . . . . 325 781 . 1231 357 Melee . | . . . . . . . . . Ramming 43 | . . . . . 41 . . 2 Kinetic 172 | . . . 37 135 . . . . Thermal 4476 | . . 46 . 1582 877 . 647 1324 Explosive 2694 | . . . . 325 781 . 1231 357 Electromagnetic 939 | . . . . 44 762 . 133 . Impact . | . . . . . . . . . Slashing . | . . . . . . . . . Piercing . | . . . . . . . . . Highest Corruption 7 | . . . . . . . 7 5 Average Corruption 3 | . . . . . . . 3 4 Corruption Purged . | . . . . . . . . . Corruption Blocked . | . . . . . . . . . Effects 7 | . . . . . . . 5 2 Message Errors 2 | . . . . . . . 2 . Matter Fused 4 | . . . . . . . 2 2 Data Loss (minor) 1 | . . . . . . . 1 . Overload Shots . | . . . . . . . . . Overflow Damage 17 | . . . . . 6 . . 11 Projectiles 11 | . . . . . . . . 11 Explosions 6 | . . . . . 6 . . . Melee . | . . . . . . . . . Knockbacks . | . . . . . . . . . Impact . | . . . . . . . . . Kinetic . | . . . . . . . . . Secondary . | . . . . . . . . . Self-Inflicted Damage 458 | . . . . . 255 . 139 64 Shots 15 | . . . . . 5 . 7 3 Rammed 2 | . . . . . . . . 2 Targets Rammed 6 | . 1 . . . 3 . . 2 Kicked 4 | . 1 . . . 3 . . . Crushed . | . . . . . . . . . Highest Temperature 1450 | . . 20 62 632 1450 . 114 484 Average Temperature 241 | . . 10 39 208 302 . 58 229 Received Heat Transfer 908 | . . 6 86 303 174 . 24 315 Effects 87 | . . . . 25 60 . . 2 Shutdowns 34 | . . . . 10 23 . . 1 Energy Bleed 9 | . . . . 5 3 . . 1 Interference 11 | . . . . 1 10 . . . Matter Decay 1 | . . . . . 1 . . . Short Circuit 9 | . . . . . 9 . . . Damage (minor) 7 | . . . . 3 4 . . . Damage (major) 10 | . . . . 3 7 . . . Damage (core) 6 | . . . . 3 3 . . . Siege Activations . | . . . . . . . . . Martial Activations . | . . . . . . . . . Shielding Activations . | . . . . . . . . . Robots Disrupted 1 | . . . . . 1 . . . Combat Hostiles 1 | . . . . . 1 . . . Robots Corrupted . | . . . . . . . . . Combat Hostiles . | . . . . . . . . . Parts Fried 3 | . . . . . 3 . . . Impact Corruptions . | . . . . . . . . . Robots Melted 1 | . . . . . . . . 1 Combat Hostiles 1 | . . . . . . . . 1 Parts Melted 18 | . . . . 3 9 . . 6 Heat Transferred 7264 | . . 161 . 2633 2287 . 888 1295 Parts Sabotaged . | . . . . . . . . . Parts Stolen . | . . . . . . . . . Parts Stripped . | . . . . . . . . . Power Chain Reactions . | . . . . . . . . . Alert | -11 -10 -10 -8 -6 -5 -4 -4 -3 ------- Run | Yrd Mat Sub Scr Fac Fac Fac DSF Res Maximum Alert Level 3 | . . . . 2 3 2 2 1 Low Security (%) 37 | 100 100 . . 63 3 . . 38 Level 1 20 | . . . . 19 4 . 18 61 Level 2 20 | . . . . 16 18 100 81 . Level 3 21 | . . . . . 72 . . . Level 4 . | . . . . . . . . . Level 5 . | . . . . . . . . . High Security . | . . . . . . . . . Max Security . | . . . . . . . . . Peak Influence 964 | . . . . 481 964 429 540 303 Initial 429 | . . . . . 207 429 300 303 Average 385 | . . . . 175 786 429 466 215 Influence Increases 2653 | . . . . 854 1184 . 250 365 Destroy 0b10 Robot/C 1200 | . . . . 440 400 . 160 200 Destroy 0b10 Robot/NC 85 | . . . . 45 20 . 10 10 Destroy Leader 188 | . . . . 68 90 . 10 20 Allied During Kill 167 | . . . . 123 44 . . . Successful Hack 42 | . . . . 32 10 . . . Select Force Hacks 20 | . . . . 20 . . . . Disable Machine 150 | . . . . 30 105 . . 15 Anti-Garrison Action 150 | . . . . . 150 . . . Destroy Structure 461 | . . . . 51 320 . 70 20 Partial Spotted 15 | . . . . . 15 . . . Lose Combat Pursuer 75 | . . . . 45 30 . . . Active Sensor Use 100 | . . . . . . . . 100 Influence Decreases 2479 | . . . . 430 731 448 139 731 Entered New Map 1031 | . . . . . 217 448 129 237 Time Decay 978 | . . . . 360 404 . . 214 Lost Part 370 | . . . . 30 50 . 10 280 Lost Ally 100 | . . . . 40 60 . . . Squads Dispatched 23 | . 1 . . 7 11 . 1 3 Investigation 7 | . . . . 2 3 . . 2 Extermination 4 | . . . . 2 2 . . . Reinforcement 7 | . 1 . . 3 2 . 1 . Assault 3 | . . . . . 3 . . . Garrison 2 | . . . . . 1 . . 1 Intercept . | . . . . . . . . . Searches Triggered . | . . . . . . . . . Construction Impeded 1 | . . . . . 1 . . . Haulers Reinforced 1 | . . . . 1 . . . . Active Scanning Responses 1 | . . . . . . . . 1 Cargo Convoy Interrupts . | . . . . . . . . . Stealth | -11 -10 -10 -8 -6 -5 -4 -4 -3 --------- Run | Yrd Mat Sub Scr Fac Fac Fac DSF Res Distress Signals 2 | . . . . 2 . . . . Communications Jammed . | . . . . . . . . . Distress Signals . | . . . . . . . . . Times Spotted 87 | . 1 3 5 26 24 . 10 18 Peak Tracking Total 7 | . . 2 3 5 4 . 3 7 Tactical Retreats 4 | . . . . 2 2 . . . Traps | -11 -10 -10 -8 -6 -5 -4 -4 -3 ------- Run | Yrd Mat Sub Scr Fac Fac Fac DSF Res Traps Triggered 4 | . . . . 2 . . 1 1 Indirectly . | . . . . . . . . . Trap Hack Attempts . | . . . . . . . . . Triggered . | . . . . . . . . . Disarmed . | . . . . . . . . . Reprogrammed . | . . . . . . . . . Reused . | . . . . . . . . . Traps Extracted . | . . . . . . . . . Installed . | . . . . . . . . . Triggered . | . . . . . . . . . Machines | -11 -10 -10 -8 -6 -5 -4 -4 -3 ---------- Run | Yrd Mat Sub Scr Fac Fac Fac DSF Res Machines Disabled 12 | . . 1 . 2 8 . . 1 Max in Single Turn 1 | . . 1 . 1 1 . . 1 Garrison Access 1 | . . . . . 1 . . . Machines Repaired . | . . . . . . . . . Machines Dismantled . | . . . . . . . . . Machines Sabotaged . | . . . . . . . . . Overloaded Fab Kills . | . . . . . . . . . Hacking | -11 -10 -10 -8 -6 -5 -4 -4 -3 --------- Run | Yrd Mat Sub Scr Fac Fac Fac DSF Res Machines Accessed 20 | . . 1 8 5 4 1 . 1 Terminals 5 | . . . . 3 1 1 . . Fabricators 3 | . . . . 2 1 . . . Repair Stations 1 | . . . . . . . . 1 Recycling Units 2 | . . . . . 2 . . . Scanalyzers . | . . . . . . . . . Garrison Access . | . . . . . . . . . Total Hacks 93 | . . 9 60 11 10 1 . 2 Successful 78 | . . 9 60 5 3 1 . . Failed 15 | . . . . 6 7 . . 2 Catastrophic 5 | . . . . 2 2 . . 1 Database Lockouts . | . . . . . . . . . Manual 8 | . . 2 . 2 4 . . . Terminals 9 | . . . . 5 3 1 . . Fabricators 9 | . . . . 6 3 . . . Repair Stations 2 | . . . . . . . . 2 Recycling Units 4 | . . . . . 4 . . . Scanalyzers . | . . . . . . . . . Garrison Access . | . . . . . . . . . Terminal Hacks 74 | . . 9 60 2 2 1 . . Record 70 | . . 8 60 . 2 . . . Part Schematic 1 | . . . . 1 . . . . Open DSF 2 | . . . . 1 . 1 . . Proto ID Catalog 1 | . . 1 . . . . . . Fabricator Hacks 3 | . . . . 2 1 . . . Network Status 2 | . . . . 2 . . . . Load Schematic 1 | . . . . . 1 . . . Repair Station Hacks . | . . . . . . . . . Recycling Unit Hacks . | . . . . . . . . . Scanalyzer . | . . . . . . . . . Garrison Access Hacks . | . . . . . . . . . Unauthorized Hacks 1 | . . . . 1 . . . . Terminals . | . . . . . . . . . Fabricators 1 | . . . . 1 . . . . Download 1 | . . . . 1 . . . . Repair Stations . | . . . . . . . . . Recycling Units . | . . . . . . . . . Scanalyzers . | . . . . . . . . . Garrison Access . | . . . . . . . . . Data Cores Recovered . | . . . . . . . . . Used . | . . . . . . . . . Hacking Detections 9 | . . . . 4 4 . . 1 Full Trace Events 4 | . . . . . 3 . . 1 Feedback Events . | . . . . . . . . . Feedback Blocked . | . . . . . . . . . Robot Schematics Acquired . | . . . . . . . . . Robots Built . | . . . . . . . . . Authchips . | . . . . . . . . . Time . | . . . . . . . . . Total Robot Build Rating . | . . . . . . . . . Part Schematics Acquired 1 | . . . . 1 . . . . Parts Built . | . . . . . . . . . Authchips . | . . . . . . . . . Time . | . . . . . . . . . Total Part Build Rating . | . . . . . . . . . Part Studies Acquired . | . . . . . . . . . Parts Repaired . | . . . . . . . . . Time . | . . . . . . . . . Parts Recycled . | . . . . . . . . . Recycled Matter . | . . . . . . . . . Retrieved Matter . | . . . . . . . . . Retrieved Components . | . . . . . . . . . Parts Scanalyzed . | . . . . . . . . . Part Schematics Acquired . | . . . . . . . . . Parts Damaged . | . . . . . . . . . Bothacking | -11 -10 -10 -8 -6 -5 -4 -4 -3 ------------ Run | Yrd Mat Sub Scr Fac Fac Fac DSF Res Used RIF Installer . | . . . . . . . . . Robots Hacked . | . . . . . . . . . Non-combat . | . . . . . . . . . Combat . | . . . . . . . . . Robot Hacks Applied . | . . . . . . . . . Relay Couplers Released 2 | . . . . . 2 . . . Machine Destruction 2 | . . . . . 2 . . . Fabnet Peak Effective % . | . . . . . . . . . Robots Rewired . | . . . . . . . . . Allies Hacked . | . . . . . . . . . Hacks Repelled . | . . . . . . . . . Allies | -11 -10 -10 -8 -6 -5 -4 -4 -3 -------- Run | Yrd Mat Sub Scr Fac Fac Fac DSF Res Total Allies 5 | . . . . 5 . . . . Largest Group 5 | . . . . 5 3 . . . Highest-Rated Group 235 | . . . . 235 141 . . . Highest-Rated Ally 47 | . . . . 47 47 . . . Total Orders . | . . . . . . . . . Ally Attacks 109 | . . . . 72 37 . . . Total Damage 2095 | . . . . 1498 597 . . . Kills 13 | . . . . 10 3 . . . Allies Corrupted . | . . . . . . . . . Allies Melted 2 | . . . 2 . . . . . Intel | -11 -10 -10 -8 -6 -5 -4 -4 -3 ------- Run | Yrd Mat Sub Scr Fac Fac Fac DSF Res Active Infowar (turns) 1865 | . . . . 491 705 6 240 423 A.S.S. 1017 | . . . . . 348 6 240 423 Terrain 848 | . . . . 491 357 . . . Robot Analysis Total . | . . . . . . . . . Derelict Logs Recovered . | . . . . . . . . . Drone Launches . | . . . . . . . . . Drone Recoveries . | . . . . . . . . . Exploration | -11 -10 -10 -8 -6 -5 -4 -4 -3 ------------- Run | Yrd Mat Sub Scr Fac Fac Fac DSF Res Turns Passed 5807 | 63 65 322 2244 1369 965 6 314 459 Spaces Moved 3751 | 46 54 196 1630 920 598 4 149 154 Core 22 | 11 . . . . . . . 11 Treads 52 | . . . . . . . . 52 Legs 3677 | 35 54 196 1630 920 598 4 149 91 Wheels . | . . . . . . . . . Hover . | . . . . . . . . . Flight . | . . . . . . . . . Fastest Speed 50 | 50 120 120 130 113 113 123 123 50 Average Speed 130 | 103 120 121 130 121 121 123 155 223 Slowest Speed 385 | 120 120 190 130 123 195 123 260 385 Overloaded Moves . | . . . . . . . . . Propulsion Burnouts . | . . . . . . . . . Robots Hopped . | . . . . . . . . . Potential Cave-ins 2 | . . . . . 2 . . . Cave-ins Triggered . | . . . . . . . . . Exploration Rate (%) 29 | 3 16 13 91 27 15 1 93 6 Regions Visited 8 Branch Regions 2 Pre-discovered Areas . | . . . . . . . . . Known Exits Taken 3 | . . . 1 . 1 1 . . Unknown Exits Taken 4 | 1 1 1 . 1 . . . . Scrap Searched 4 | . . . 4 . . . . . Spaces Dug 16 | . . . . . 16 . . . Terrain Destroyed 269 | . . . . 43 160 . 58 8 Melee . | . . . . . . . . . Projectile 17 | . . . . 1 10 . . 6 AOE 252 | . . . . 42 150 . 58 2 Terrain Rammed . | . . . . . . . . . Walls Destroyed . | . . . . . . . . . Machines Disabled . | . . . . . . . . . Actions | -11 -10 -10 -8 -6 -5 -4 -4 -3 --------- Run | Yrd Mat Sub Scr Fac Fac Fac DSF Res Total 4405 | 61 54 257 1756 1076 781 5 195 220 Wait 212 | . . 26 14 43 102 . 2 25 Move 3743 | 45 53 195 1629 919 597 3 148 154 Hop . | . . . . . . . . . Pick Up 94 | 10 . 10 21 25 9 . 15 4 Fast Attach 6 | . . 1 1 . 4 . . . Attach 66 | 6 . 5 5 16 13 2 8 11 Detach 1 | . . . . 1 . . . . Swap 15 | . . 1 2 7 3 . 1 1 Drop 57 | . . 6 14 16 14 . 6 1 Fire 139 | . . 13 4 49 36 . 15 22 Melee . | . . . . . . . . . Ram 2 | . . . . . . . . 2 Kick 4 | . 1 . . . 3 . . . Crush . | . . . . . . . . . Escape Stasis . | . . . . . . . . . Rewire 66 | . . . 66 . . . . . Trap . | . . . . . . . . . Miscellaneous . | . . . . . . . . . Route ------- -11/Scrapyard -10/Materials (discovered 2 exits: [*Min] / *Sub) -10/Subcaves -8/Scraptown (discovered 2 exits: *Fac x2) -6/Factory -5/Factory -4/Factory -4/DSF -3/Research History --------- Turn | Location | Event 7 | -11/Scrapyard | Discovered new exit (range 16) 64 | -11/Scrapyard | Entered Materials 65 | -10/Materials | Met a group of wandering Federalists 103 | -10/Materials | Discovered new exit (range 14) 117 | -10/Materials | Discovered new exit (range 9) 129 | -10/Materials | Entered Subcaves 129 | -10/Subcaves | Accompanied by 3 allies 130 | -10/Subcaves | Continued accompanying wandering Federalists (4) 130 | -10/Subcaves | Approached by a straggling Scientist 314 | -10/Subcaves | Build established: Mutant 318 | -10/Subcaves | Visited 4L-MR0's lab 369 | -10/Subcaves | Wandering Federalist uncovered a shortcut to Scraptown 409 | -10/Subcaves | Found Cargo Legs 426 | -10/Subcaves | Lost 7 allies 428 | -10/Subcaves | Attached Cargo Legs, gained temporary slots: Utility x2 451 | -10/Subcaves | Entered Scraptown 705 | -8/Scraptown | Build established: Scavenger-Mutant 729 | -8/Scraptown | Visited UFD Registry 729 | -8/Scraptown | Registered with UFD as "Cogfunk" 746 | -8/Scraptown | Visited The Evicted 789 | -8/Scraptown | Visited Fellowship of the Rings 836 | -8/Scraptown | Visited Supply Room 905 | -8/Scraptown | Visited Comm Corps 984 | -8/Scraptown | Visited Spacefarers 1054 | -8/Scraptown | Visited Cyclists 1083 | -8/Scraptown | Entered Cyclist Reading Room 1146 | -8/Scraptown | Build established: Derelict-Mutant 1356 | -8/Scraptown | Discovered new exit (range 5) 1363 | -8/Scraptown | Identified exit to Factory 1810 | -8/Scraptown | Visited Symbiants 1881 | -8/Scraptown | Visited Chapter 10 2002 | -8/Scraptown | Visited Scrapoid Pod Storage 2274 | -8/Scraptown | Found Scrapoid Pod 2312 | -8/Scraptown | Visited Abandonware Association 2337 | -8/Scraptown | Learned abandonware demo "REPAIR.EXE" 2366 | -8/Scraptown | Visited Research Penetration Think Tank 2410 | -8/Scraptown | Met Optimus 2410 | -8/Scraptown | Accepted into 0bPrime 2484 | -8/Scraptown | Visited A0-MCA Data Center 2492 | -8/Scraptown | Given an A- rating by A0-MCA 2496 | -8/Scraptown | Found A0-MCA's Component Scanner 2570 | -8/Scraptown | Visited Observation Area 2610 | -8/Scraptown | Civil war broke out across Scraptown 2672 | -8/Scraptown | Discovered exit to Factory (range 3) 2674 | -8/Scraptown | Attached CPS modules to MS-25A(j). 2677 | -8/Scraptown | Attached CPS modules to MS-25A(j). 2678 | -8/Scraptown | Core integrity fell below 50% 2687 | -8/Scraptown | Found Scrap Suit 2695 | -8/Scraptown | Entered Factory 2695 | -6/Factory | Evolved 8 slots: Power x1, Propulsion x2, Utility x4, Weapon x1 2707 | -6/Factory | Lost 8 allies 3129 | -6/Factory | Build established: Gunner 3377 | -6/Factory | Destroyed 7 combat bots 3379 | -6/Factory | Core integrity fell below 50% 3416 | -6/Factory | Scrapoid Pod released 06F05-D (x5) 3537 | -6/Factory | Allied Derelicts emerged from ambush trap array 3656 | -6/Factory | Found Prototype Launcher 3658 | -6/Factory | Found Prototype Launcher 3743 | -6/Factory | Found Active Sensor Suite 4002 | -6/Factory | Discovered new exit (range 16) 4064 | -6/Factory | Entered another Factory area 4064 | -5/Factory | Accompanied by 3 allies 4064 | -5/Factory | Evolved 2 slots: Power x1, Weapon x1 4064 | -5/Factory | Identified Rocket Array (x2) 4137 | -5/Factory | Garrison activated, responded to threat 4144 | -5/Factory | Build established: Scavenger-Gunner 4275 | -5/Factory | Lost 3 allies 4631 | -5/Factory | Core integrity fell below 50% 4964 | -5/Factory | First assault squad dispatched 4978 | -5/Factory | Discovered new exit (range 13) 4998 | -5/Factory | Identified exit to Factory 5029 | -5/Factory | Entered another Factory area 5029 | -4/Factory | Evolved 2 slots: Utility x2 5035 | -4/Factory | Identified exit to DSF 5035 | -4/Factory | Entered DSF 5092 | -4/DSF | Additional patrols routed to DSF 5102 | -4/DSF | Discovered new exit (range 16) 5137 | -4/DSF | Build established: Scavenger-Skirmisher 5346 | -4/DSF | Identified exit to Research 5349 | -4/DSF | Entered Research 5349 | -3/Research | Evolved 2 slots: Utility x2 5649 | -3/Research | Lost 11 parts (2p4n2u3w) 5736 | -3/Research | Garrison activated, responded to threat 5788 | -3/Research | Core integrity fell below 50% 5806 | -3/Research | Core integrity fell below 20% 5808 | -3/Research | Destroyed by H-77 Assassin with High-powered Shotgun Last Messages --------------- Slug penetrates Engineering Station. Penetrated by Slug. Slug penetrates Engineering Station. Slug penetrates Wall. Penetrated by Slug. Nova Cannon destroyed. Penetrated by Slug. Imp. Deuterium Engine destroyed. Lrg. Storage Unit destroyed. Penetrated by Slug. Nova Cannon destroyed. Penetrated by Slug. Slug penetrates Engineering Station. Slug penetrates Wall. Penetrated by Slug. Slug penetrates G-67 Veteran. Mic. Fission Core destroyed. Critical hit (Burn: +50). Penetrated by Slug. [Achievement: This Is Interesting...] Map ----- +----------------------------------------------------+ | ?????????????????????????????????????????????????? | | ?????????????????????????????????????????????????? | | ?????????????????????????????????????????????????? | | ?????????????????????????????????????????????????? | | ?????????????????????????????????????????????????? | | ?????????????????????????????????????????????????? | | ?????????????????????????????????????????????????? | | ?????????????????????????????????????????????????? | | ?????????????????????????????????????????????????? | | ?????????????????????????????????????????????????? | | ?????????????????????????? ???????????????????? | | ?????????????????????????? #??????????????????? | | ?????????????????????????# #??????????????????? | | ?????????????????????????# #??????????????????? | | ?????????????????????????# #??????????????????? | | ?????????????????????????# #??????????????????? | | ?????????????????????????# #??????????????????? | | ?????????????????????????# #??????????????????? | | ?????????????????????????# ##############?????? | | ?????????????????????????+ ^ # #?????? | | ?????????????????????????# ^# #?????? | | ?????????????????????????# # """ #?????? | | ?????????????????????????# # """ #?????? | | ?????????????????????????# w# """ #?????? | | ?????????################# # =!! ""#?????? | | ?????????# # %= @ = *%! ""#?????? | | ?????????# # !== %h """ G#?????? | | ?????????#"""" ; *! =%=h """ ""#?????? | | ?????????#"""" sgggg % * """ ""#?????? | | ?????????#"""" #%= " != # #?????? | | ?????????#"""" #! "" # #?????? | | ?????????# " # #################??? | | ?????????# # # #??? | | ?????????# # # #??? | | ?????????########## " #??? | | ??????????????????# " #??? | | ??????????????????# ######+### " #??? | | ??????????????????# #? " # ! #??? | | ??????????????????# ## # # #??? | | ??????????????????# ## # # #??? | | ??????????????????# ## """ ?# # #??? | | ??????????????????# ## """??# #"########??? | | ??????????????????# #????""??# ###?????????? | | ??????????????????# #????????# #???????????? | | ??????????????????# #????????# #???????????? | | ??????????????????# ########## #???????????? | | ??????????????????# #???????????? | | ??????????????????# #???????????? | | ??????????????????# #???????????? | | ??????????????????# #???????????? | +----------------------------------------------------+ Best States ------------- Heat Dissipation 103 Energy Generation 59 Energy Capacity 820 Matter Stores 300 Matter Capacity 300 Sight Range 16 Robot Scan Range 20 Terrain Scan Range 20 Terrain Scan Density 10 Evasion (%) 70 Targeting Accuracy 5 Target Analysis 5 Recoil Reduction 1 Item Schematics ----------------- Coil Gun | -6/Factory | Hacked Robot Schematics ------------------ None Fabricated ------------ Nothing Repaired ---------- Nothing Studied --------- None Alien Tech Used ----------------- None Achievements -------------- Bob, First Of His Name Civilization 2243 Dangerous Findings Link The Feds Mistaken Identity Oh No You Don't! Some Acronyms Are Better Than Others Strength In Numbers This Is Interesting... Uncivil War Challenges ------------ None Game ------ Seed DeepShockRedistributor Manual? 0 Play Time 01:26:47 Cumulative 27.8 hours Start 2025.10.26 @ 21:00:50 End 2025.10.26 @ 22:28:45 Sessions 1 Manual Loads 0 Difficulty Rogue Special Mode None Game No. 34 Rogue 34 Adventurer 0 Explorer 0 Win Type - Total 0 Types 0/0/0/0/0/0/0/0/0/0 Lore% 26 Gallery% 28 Achievement% 21 Wizard Run 0 Options --------- Layout 2 ASCII 0 Keyboard 0 Movement Mouse Keybinds 0 Fullscreen 1 Font 16/SmallcapsGlow Map View 25x24 Zoom Use 100% Tactical HUD 0 Map Filters NONE Filters NONE Steam SD RUN: fb1846a8-43cf-44ae-9edd-fb68d263a088